bitfinex/quotes_SOLUSD_20260302
["timestamp","ask_amount","ask_price","bid_price","bid_amount"]
[1772488053440,11.40393892,87.689,87.647,0.53339691]
[1772488054050,11.40289861,87.697,87.647,0.53339691]
[1772488054572,4.00139424,87.69,87.647,0.53339691]
[1772488055950,4.00139424,87.66,87.635,0.53339691]
[1772488056173,4.00139424,87.66,87.637,0.53339691]
[1772488056350,4.00139424,87.67,87.637,0.53339691]
[1772488060060,4.00139424,87.66,87.628,0.53339691]
[1772488060661,39.92289178,87.669,87.628,0.53339691]
[1772488062475,39.92289178,87.669,87.61,4.20139424]
[1772488062476,4.00139424,87.64,87.61,0.2]
[1772488062646,4.00139424,87.63,87.61,0.73339691]
[1772488063055,4.00139424,87.62,87.61,0.2]
[1772488063560,0.28432314,87.668,87.61,0.2]
[1772488063561,4.00139424,87.63,87.61,0.2]
[1772488063858,4.00139424,87.62,87.61,0.2]
[1772488066378,4.00139424,87.63,87.61,0.2]
[1772488066675,4.00139424,87.63,87.611,0.53339691]
[1772488067543,4.00139424,87.65,87.611,0.53339691]
[1772488069170,11.40914328,87.649,87.612,11.41396155]
[1772488069361,11.40914328,87.649,87.613,0.53339691]
[1772488073075,11.40914328,87.649,87.61,28.7355553]
[1772488073076,11.40914328,87.649,87.615,0.53339691]
[1772488076660,39.93200149,87.649,87.615,0.53339691]
[1772488076861,39.93200149,87.649,87.61,0.2]
[1772488076862,39.93200149,87.649,87.617,0.53339691]
[1772488078276,11.40914328,87.649,87.617,0.53339691]
[1772488079081,4.00139424,87.66,87.619,0.53339691]
[1772488079882,4.00139424,87.65,87.619,0.53339691]
[1772488080487,4.00139424,87.66,87.619,0.53339691]
[1772488084874,11.40784175,87.659,87.62,11.41291942]
[1772488085077,39.92744612,87.659,87.621,0.53339691]
[1772488088570,39.92744612,87.659,87.623,0.53339691]
[1772488089473,4.00092474,87.65,87.623,0.53339691]
[1772488090582,4.00092474,87.65,87.61,28.73545039]
[1772488090583,4.00092474,87.63,87.61,0.2]
[1772488090882,39.93200149,87.649,87.611,0.53339691]
[1772488090883,4.00092474,87.64,87.611,0.53339691]
[1772488091067,4.00092474,87.66,87.613,0.53339691]
[1772488092177,11.40784175,87.659,87.615,0.53339691]
[1772488092489,39.92744612,87.659,87.615,0.53339691]
[1772488092916,39.92744612,87.659,87.61,0.2]
[1772488093097,4.00092474,87.64,87.61,0.2]
[1772488093269,4.00092474,87.64,87.611,0.53339691]
[1772488093463,0.5031214,87.629,87.61,1e-08]
[1772488093766,0.5031214,87.619,87.61,1e-08]
[1772488094201,0.50270195,87.629,87.61,1e-08]
[1772488094409,0.50270195,87.628,87.61,1e-08]
[1772488094804,11.41174725,87.629,87.61,1e-08]
[1772488095008,0.50270195,87.638,87.61,1e-08]
[1772488095212,0.50228732,87.642,87.61,1e-08]
[1772488095393,0.50228732,87.629,87.61,1e-08]
[1772488096081,4.00092474,87.62,87.61,1e-08]
[1772488096283,45.6346226,87.653,87.61,1e-08]
[1772488096284,0.50228732,87.617,87.61,1e-08]
[1772488096488,0.46856585,87.599,87.58,0.2]
[1772488096691,0.46856585,87.599,87.55,11.68957506]
[1772488096692,0.46856585,87.579,87.55,7.68865032]
[1772488096904,0.30147229,87.569,87.55,7.68865032]
[1772488097205,0.30147229,87.569,87.541,0.47486491]
[1772488097508,4.00092474,87.57,87.541,0.47486491]
[1772488097709,0.30107179,87.576,87.541,0.47486491]
[1772488098090,4.00092474,87.57,87.541,0.47486491]
[1772488098289,0.30067588,87.559,87.54,0.2]
[1772488098521,0.30028452,87.593,87.542,0.50365732]
[1772488098816,39.95023341,87.609,87.542,0.50365732]
[1772488098817,0.30028452,87.579,87.542,0.50365732]
[1772488099020,4.00092474,87.58,87.542,0.50365732]
[1772488099510,0.27268294,87.579,87.544,0.50365732]
[1772488099716,0.27268294,87.589,87.544,0.50365732]
[1772488100319,45.6386328,87.646,87.544,11.42269794]
[1772488100617,0.4488908,87.714,87.655,0.50365732]
[1772488100793,0.4488908,87.699,87.655,0.50365732]
[1772488100992,0.4488908,87.699,87.661,0.50365732]
[1772488101617,13.7802599,87.738,87.661,0.50365732]
[1772488101618,0.4488908,87.737,87.661,0.50365732]
[1772488101815,0.4488908,87.729,87.681,0.50365732]
[1772488102116,4.10092474,87.76,87.711,0.50365732]
[1772488102117,0.4488908,87.749,87.711,0.50365732]
[1772488102303,0.4488908,87.749,87.712,11.40094855]
[1772488102508,0.4488908,87.749,87.7,4.00092474]
[1772488102509,0.4488908,87.747,87.707,11.40152203]
[1772488102816,0.4488908,87.747,87.701,0.50365732]
[1772488103018,0.4488908,87.729,87.681,0.50365732]
[1772488103398,0.4488908,87.729,87.686,11.40431459]
[1772488103813,10.69547959,87.72,87.681,0.50365732]
[1772488104114,0.4488908,87.709,87.661,0.50365732]
[1772488104515,0.4488908,87.709,87.662,11.40745134]
[1772488104817,10.69547959,87.7,87.662,11.40745134]
[1772488104996,0.4488908,87.699,87.663,0.50365732]
[1772488105451,11.14437039,87.71,87.663,0.50365732]
[1772488105592,0.4488908,87.721,87.67,10.69547959]
[1772488105798,10.69547959,87.72,87.671,0.50365732]
[1772488106112,5.95852036,87.698,87.671,0.50365732]
[1772488106316,5.95852036,87.698,87.673,0.50365732]
[1772488106520,0.4488908,87.72,87.685,0.50365732]
[1772488106698,11.14437039,87.73,87.685,0.50365732]
[1772488107095,0.4488908,87.729,87.685,0.50365732]
[1772488107494,10.69547959,87.72,87.685,0.50365732]
[1772488107697,0.47560098,87.699,87.622,45.65018292]
[1772488107897,10.69547959,87.69,87.643,3.69383402]
[1772488108108,10.69547959,87.69,87.65,3.69383402]
[1772488108621,10.69547959,87.69,87.651,39.93109034]
[1772488109413,11.17108057,87.7,87.651,39.93109034]
[1772488109698,10.69547959,87.69,87.652,0.50365732]
[1772488110003,10.69547959,87.67,87.651,11.40888295]
[1772488110209,10.69547959,87.67,87.651,11.91254027]
[1772488110398,10.69547959,87.67,87.633,3.69383402]
[1772488110399,10.69547959,87.68,87.654,0.50365732]
[1772488111002,0.47560098,87.659,87.622,0.50365732]
[1772488111302,10.69547959,87.65,87.624,0.50365732]
[1772488111707,11.88084054,87.679,87.625,0.50365732]
[1772488112027,10.69547959,87.68,87.641,0.50365732]
[1772488112321,10.69547959,87.68,87.642,0.50365732]
[1772488112506,10.69547959,87.69,87.653,0.50365732]
[1772488113026,0.47560098,87.689,87.653,0.50365732]
[1772488113530,10.69547959,87.68,87.653,0.50365732]
[1772488114734,10.69547959,87.68,87.644,0.50365732]
[1772488114900,10.69547959,87.67,87.644,0.50365732]
[1772488115924,10.69547959,87.68,87.645,0.50365732]
[1772488116119,0.47560098,87.688,87.645,0.50365732]
[1772488116918,0.47560098,87.688,87.63,10.69547959]
[1772488116919,0.47560098,87.649,87.62,11.41291942]
[1772488117218,10.69547959,87.64,87.62,11.41291942]
[1772488117421,0.47560098,87.649,87.62,11.41291942]
[1772488118919,0.47560098,87.649,87.614,39.94765951]
[1772488119124,0.47560098,87.649,87.615,0.50365732]
[1772488120019,0.47560098,87.649,87.616,11.41344046]
[1772488120234,0.47560098,87.658,87.617,0.50365732]
[1772488120412,0.47560098,87.656,87.617,0.50365732]
[1772488121301,10.69547959,87.65,87.617,0.50365732]
[1772488121507,10.69547959,87.65,87.619,0.50365732]
[1772488121710,0.47560098,87.654,87.619,0.50365732]
[1772488122029,10.69547959,87.65,87.619,0.50365732]
[1772488123036,0.47560098,87.649,87.618,11.41317994]
[1772488123208,0.47560098,87.639,87.614,11.413701]
[1772488123409,11.40927345,87.648,87.615,0.50365732]
[1772488124128,0.47560098,87.647,87.615,0.50365732]
[1772488124936,11.88432182,87.653,87.618,0.50365732]
[1772488125109,0.47560098,87.652,87.618,0.50365732]
[1772488125304,0.47560098,87.649,87.614,11.413701]
[1772488125508,0.47560098,87.647,87.614,11.413701]
[1772488126726,0.47560098,87.639,87.602,0.50365732]
[1772488126910,0.47560098,87.639,87.614,11.413701]
[1772488128923,0.53187721,87.648,87.615,0.57479333]
[1772488129111,11.40940363,87.647,87.615,0.57479333]
[1772488129533,28.5132559,87.679,87.619,0.57479333]
[1772488129710,10.69547959,87.67,87.631,0.57479333]
[1772488129912,0.53187721,87.669,87.631,0.57479333]
[1772488132030,0.53187721,87.669,87.633,0.57479333]
[1772488132331,11.40667062,87.668,87.633,0.57479333]
[1772488132534,11.93854783,87.668,87.633,0.57479333]
[1772488133035,10.69547959,87.68,87.641,0.57479333]
[1772488133223,11.2273568,87.68,87.641,0.57479333]
[1772488133431,0.53187721,87.679,87.641,0.57479333]
[1772488133725,0.53187721,87.692,87.651,0.57479333]
[1772488133925,0.53187721,87.709,87.671,0.57479333]
[1772488134128,0.53187721,87.715,87.681,0.57479333]
[1772488134630,0.53187721,87.715,87.672,11.40615019]
[1772488134631,0.53187721,87.709,87.672,11.98094352]
[1772488134824,11.40044232,87.716,87.663,11.40727203]
[1772488134825,0.53187721,87.699,87.663,11.40727203]
[1772488135028,0.53187721,87.689,87.651,11.40888295]
[1772488135616,11.40044232,87.716,87.621,0.57479333]
[1772488135617,0.53187721,87.659,87.621,0.57479333]
[1772488135819,4.82477569,87.703,87.621,41.9875825]
[1772488135820,10.69547959,87.65,87.621,41.9875825]
[1772488136019,10.69547959,87.65,87.621,11.41278917]
[1772488136020,0.53187721,87.647,87.621,11.41278917]
[1772488136451,0.53187721,87.647,87.621,11.9875825]
[1772488138440,0.53187721,87.656,87.622,0.57479333]
[1772488140942,0.53187721,87.656,87.621,11.41278917]
[1772488140943,0.53187721,87.629,87.581,0.57479333]
[1772488141142,0.53187721,87.609,87.571,11.41930547]
[1772488141341,0.53187721,87.609,87.573,30.0]
[1772488142350,0.53187721,87.609,87.572,0.57479333]
[1772488144829,11.94632811,87.609,87.574,0.57479333]
[1772488145348,0.53187721,87.608,87.574,0.57479333]
[1772488146537,0.53187721,87.589,87.547,0.57479333]
[1772488146848,0.53187721,87.567,87.545,30.0]
[1772488147048,0.53187721,87.559,87.545,30.0]
[1772488147233,0.53187721,87.559,87.54,0.2]
[1772488148245,0.53187721,87.559,87.541,11.42321883]
[1772488149557,11.95285458,87.559,87.54,0.2]
[1772488149738,0.53187721,87.559,87.54,11.62330572]
[1772488150248,0.53187721,87.611,87.552,0.57479333]
[1772488150433,0.53187721,87.609,87.561,0.57479333]
[1772488150635,0.53187721,87.599,87.551,0.28432314]
[1772488150835,0.53187721,87.589,87.551,0.28432314]
[1772488151256,0.53187721,87.589,87.552,0.57479333]
[1772488151638,0.53187721,87.589,87.554,0.57479333]
[1772488151946,11.9489663,87.588,87.554,0.57479333]
[1772488152173,0.53187721,87.588,87.554,0.57479333]
[1772488152865,10.73681788,87.58,87.542,11.4230674]
[1772488153038,11.41708909,87.588,87.542,11.4230674]
[1772488153039,0.53187721,87.569,87.542,11.4230674]
[1772488153432,0.53187721,87.569,87.542,11.99786073]
[1772488153831,0.53187721,87.578,87.543,0.57479333]
[1772488154554,0.53187721,87.587,87.545,0.57479333]
[1772488154760,0.53187721,87.599,87.553,0.57479333]
[1772488155441,0.53187721,87.589,87.543,0.57479333]
[1772488155639,10.73681788,87.58,87.542,11.4230674]
[1772488155939,0.53187721,87.569,87.542,11.4230674]
[1772488157265,11.41969669,87.568,87.542,11.4230674]
[1772488158158,0.71824842,87.571,87.543,0.73434891]
[1772488158339,12.13645547,87.58,87.543,0.73434891]
[1772488158543,0.71824842,87.592,87.551,0.73434891]
[1772488158743,11.41708805,87.589,87.551,0.73434891]
[1772488159155,0.71824842,87.588,87.551,0.73434891]
[1772488159539,0.71824842,87.569,87.542,11.4230674]
[1772488160960,11.41893417,87.574,87.543,0.73434891]
[1772488161145,11.41839274,87.578,87.543,0.73434891]
[1772488161754,0.71824842,87.585,87.551,0.73434891]
[1772488163458,0.71824842,87.579,87.543,0.73434891]
[1772488163869,12.13418074,87.597,87.561,0.73434891]
[1772488164379,12.13418074,87.597,87.57,10.73681788]
[1772488165870,12.13418074,87.597,87.571,11.41930547]
[1772488166072,0.71824842,87.596,87.571,11.41930547]
[1772488167280,0.71824842,87.596,87.563,0.73434891]
[1772488169070,57.05503076,87.635,87.571,0.73434891]
[1772488169071,0.71824842,87.604,87.571,0.73434891]
[1772488169253,0.71824842,87.619,87.591,0.73434891]
[1772488169576,11.41256394,87.623,87.591,0.73434891]
[1772488170149,0.71824842,87.622,87.591,0.73434891]
[1772488171175,0.71824842,87.62,87.592,11.41656772]
[1772488172049,0.71824842,87.62,87.592,12.15091663]
[1772488172254,0.71824842,87.62,87.593,0.73434891]
[1772488174376,0.71824842,87.62,87.594,11.41630705]
[1772488177474,0.71824842,87.618,87.594,11.41630705]
[1772488178056,0.71824842,87.618,87.589,11.41695393]
[1772488178559,11.4133102,87.617,87.589,11.41695393]
[1772488178783,0.71824842,87.639,87.601,0.73434891]
[1772488179078,0.71824842,87.639,87.61,10.73681788]
[1772488179384,0.71824842,87.639,87.61,0.73434891]
[1772488179988,0.71824842,87.639,87.612,0.73434891]
[1772488181459,11.41057532,87.638,87.613,11.41383128]
[1772488182061,0.71824842,87.637,87.613,11.41383128]
[1772488182288,0.71824842,87.619,87.581,11.41800162]
[1772488182470,10.73681788,87.61,87.581,12.15235053]
[1772488182872,10.73681788,87.61,87.566,30.0]
[1772488183075,10.73681788,87.59,87.567,11.4198271]
[1772488183582,10.73681788,87.59,87.549,28.55528434]
[1772488183583,11.41695875,87.589,87.563,11.42029405]
[1772488183962,11.41695875,87.589,87.555,11.42139226]
[1772488184161,11.41695875,87.589,87.556,0.90846735]
[1772488184379,11.41648499,87.593,87.556,0.90846735]
[1772488184681,10.73681788,87.59,87.556,0.90846735]
[1772488185786,22.15374738,87.59,87.558,0.90846735]
[1772488188077,22.15374738,87.59,87.56,0.90846735]
[1772488188388,11.4169295,87.59,87.541,0.93601685]
[1772488188588,10.73681788,87.58,87.541,0.93601685]
[1772488189375,0.0238745,87.585,87.541,0.93601685]
[1772488189781,10.73681788,87.58,87.541,0.93601685]
[1772488189966,10.73681788,87.58,87.545,0.93601685]
[1772488190384,0.0238745,87.585,87.545,0.93601685]
[1772488191384,10.73681788,87.58,87.545,0.93601685]
[1772488192770,0.0238745,87.585,87.547,0.93601685]
[1772488193879,0.08826332,87.579,87.543,11.42295431]
[1772488194079,0.28432314,87.589,87.54,0.2]
[1772488194080,10.73681788,87.56,87.54,0.2]
[1772488194291,10.73681788,87.57,87.541,0.93601685]
[1772488194587,10.73681788,87.58,87.541,0.93601685]
[1772488194794,11.41826236,87.579,87.543,0.93601685]
[1772488195091,0.10390544,87.578,87.543,0.93601685]
[1772488195291,10.73681788,87.56,87.54,0.2]
[1772488196696,39.96391828,87.579,87.54,0.05686054]
[1772488196896,10.73681788,87.56,87.54,0.05686054]
[1772488197469,39.96483094,87.577,87.54,0.05686054]
[1772488197690,10.73681788,87.55,87.54,0.05686054]
[1772488197980,0.28432314,87.576,87.54,0.05686054]
[1772488197981,10.73681788,87.56,87.54,0.05686054]
[1772488198377,0.02179909,87.559,87.54,0.05686054]
[1772488198976,45.67114859,87.583,87.54,0.05686054]
[1772488198977,28.54987202,87.567,87.54,0.05686054]
[1772488199175,11.41969669,87.568,87.54,1.06444712]
[1772488199375,10.73681788,87.58,87.541,1.00758658]
[1772488200483,0.03666703,87.589,87.543,1.00758658]
[1772488200987,10.73681788,87.58,87.543,1.00758658]
[1772488201894,11.41826236,87.579,87.544,11.42282737]
[1772488202099,11.41826236,87.579,87.545,1.00758658]
[1772488202500,10.73681788,87.59,87.551,1.00758658]
[1772488202677,11.41642082,87.594,87.551,1.00758658]
[1772488203090,10.73681788,87.59,87.551,1.00758658]
[1772488204697,11.52545356,87.589,87.553,1.00758658]
[1772488205082,0.10849481,87.588,87.553,1.00758658]
[1772488205292,11.41695875,87.589,87.553,1.00758658]
[1772488205977,0.12237611,87.588,87.553,1.00758658]
[1772488206190,0.12237611,87.579,87.552,11.42178362]
[1772488206698,0.1360942,87.578,87.547,11.42239882]
[1772488207786,0.1360942,87.578,87.548,1.00758658]
[1772488209095,0.16308111,87.588,87.55,1.00758658]
[1772488209404,10.73681788,87.58,87.55,1.00758658]
[1772488210600,10.73411368,87.58,87.55,1.00758658]
[1772488211201,10.73411368,87.58,87.552,1.00758658]
[1772488211903,11.41780763,87.583,87.552,1.00758658]
[1772488213298,11.41780763,87.583,87.553,11.42165317]
[1772488213903,11.41780763,87.583,87.554,1.00758658]
[1772488215310,11.67058232,87.583,87.554,1.00758658]
[1772488216599,11.67058232,87.583,87.555,11.42139226]
[1772488216816,11.41730127,87.587,87.556,1.13202777]
[1772488217106,0.27709303,87.586,87.556,1.13202777]
[1772488218105,11.41748016,87.585,87.557,11.42113137]
[1772488218311,11.41748016,87.585,87.557,12.46473247]
[1772488218691,57.07114203,87.61,87.557,12.46473247]
[1772488218692,0.31255666,87.622,87.561,1.0436011]
[1772488218911,0.31255666,87.622,87.581,1.0436011]
[1772488219098,0.31255666,87.619,87.581,1.0436011]
[1772488220710,0.33550941,87.617,87.583,1.0436011]
[1772488222690,11.41344046,87.616,87.585,1.0436011]
[1772488223801,11.413701,87.614,87.586,12.4609509]
[1772488224001,11.413701,87.614,87.587,1.0436011]
[1772488224520,0.37981136,87.613,87.587,1.0436011]
[1772488225220,10.72391173,87.61,87.572,1.0436011]
[1772488225389,0.37981136,87.609,87.575,11.41870959]
[1772488225596,0.39059098,87.636,87.58,10.72391173]
[1772488225817,0.39059098,87.636,87.578,3.69383402]
[1772488225818,0.39059098,87.629,87.591,1.0436011]
[1772488228200,0.41172884,87.627,87.593,1.0436011]
[1772488229219,0.42213126,87.625,87.595,1.0436011]
[1772488229719,0.43240115,87.619,87.595,1.0436011]
[1772488229929,0.43240115,87.609,87.589,11.41689415]
[1772488230218,0.43240115,87.609,87.583,11.41763632]
[1772488230427,0.43240115,87.609,87.575,1.0436011]
[1772488231297,0.45259657,87.607,87.576,11.41865351]
[1772488231497,0.45259657,87.607,87.577,1.0436011]
[1772488233611,0.47233397,87.599,87.567,1.0436011]
[1772488234101,0.47233397,87.579,87.553,11.42165317]
[1772488234611,0.47233397,87.579,87.554,1.0436011]
[1772488235629,11.90856352,87.589,87.556,1.0436011]
[1772488236509,11.4164071,87.594,87.561,1.0436011]
[1772488236704,0.50107661,87.593,87.561,1.0436011]
[1772488237138,11.4164071,87.594,87.561,1.0436011]
[1772488237139,0.50107661,87.589,87.561,1.0436011]
[1772488237932,11.41708909,87.588,87.562,12.4640803]
[1772488239524,0.52885625,87.587,87.562,12.4640803]
[1772488240041,11.94545364,87.592,87.563,1.0436011]
[1772488240216,0.52885625,87.591,87.563,1.0436011]
[1772488241038,11.41659739,87.592,87.563,1.0436011]
[1772488241221,11.41565542,87.599,87.565,1.0436011]
[1772488242248,10.72391173,87.57,87.544,12.46642847]
[1772488242447,11.27360171,87.57,87.545,1.0436011]
[1772488242614,4.5584509,87.57,87.545,1.0436011]
[1772488243038,4.5584509,87.57,87.54,0.05686054]
[1772488243039,0.54968998,87.559,87.54,0.05686054]
[1772488243419,4.00876092,87.57,87.54,1.10046164]
[1772488243619,0.55547943,87.597,87.561,1.0436011]
[1772488244241,0.55547943,87.605,87.561,1.0436011]
[1772488244456,0.55547943,87.605,87.571,1.0436011]
[1772488246641,11.4143524,87.609,87.581,1.0436011]
[1772488248136,11.4143524,87.609,87.583,1.21754993]
[1772488252046,4.00876092,87.62,87.583,1.21754993]
[1772488252245,0.60447174,87.609,87.583,1.21754993]
[1772488253127,11.41448269,87.608,87.583,1.21754993]
[1772488253851,12.02916856,87.608,87.583,1.21754993]
[1772488254449,0.61970383,87.607,87.583,1.21754993]
[1772488254752,0.61970383,87.607,87.584,11.41761052]
[1772488255138,0.61970383,87.607,87.584,12.63516045]
[1772488255332,0.61970383,87.607,87.584,11.41761052]
[1772488255534,11.41474328,87.606,87.584,11.41761052]
[1772488256551,11.41474328,87.606,87.584,1.21754993]
[1772488257455,0.61970383,87.607,87.584,1.21754993]
[1772488257755,11.41374363,87.614,87.584,1.21754993]
[1772488258054,11.41200771,87.627,87.591,1.21754993]
[1772488258736,11.41200771,87.627,87.59,4.00876092]
[1772488258737,11.41151175,87.631,87.593,1.21754993]
[1772488259233,11.41151175,87.631,87.6,4.00876092]
[1772488259434,11.41151175,87.631,87.601,1.21754993]
[1772488260240,11.41044512,87.639,87.603,1.21754993]
[1772488260440,0.64864018,87.659,87.611,1.21754993]
[1772488260638,4.6574011,87.65,87.611,1.21754993]
[1772488260834,0.64864018,87.649,87.611,1.21754993]
[1772488261653,4.00876092,87.65,87.611,1.21754993]
[1772488262054,11.40914328,87.649,87.613,1.21754993]
[1772488262253,11.40863868,87.653,87.62,4.00876092]
[1772488262451,11.40863868,87.653,87.621,1.21754993]
[1772488264658,11.40863868,87.653,87.623,1.21754993]
[1772488266756,11.40863868,87.653,87.625,1.21754993]
[1772488267366,0.67991651,87.656,87.625,1.21754993]
[1772488270459,11.40836232,87.655,87.626,11.41213794]
[1772488270659,11.40836232,87.655,87.627,1.21754993]
[1772488272669,102.7,87.676,87.604,1.14150038]
[1772488272670,11.40523956,87.679,87.641,1.21754993]
[1772488272875,11.40523956,87.679,87.628,39.94157118]
[1772488272876,0.1,87.68,87.651,1.21754993]
[1772488273070,102.7,87.708,87.629,1.14117472]
[1772488273071,0.70074762,87.702,87.671,1.21754993]
[1772488273250,11.50255479,87.7,87.671,1.21754993]
[1772488275177,11.50255479,87.7,87.673,1.21754993]
[1772488277277,11.50255479,87.7,87.675,1.29187309]
[1772488278553,15.5026601,87.7,87.675,1.29187309]
[1772488278982,4.83232394,87.68,87.654,1.32191692]
[1772488279185,11.40654051,87.669,87.646,1.32191692]
[1772488279985,11.40654051,87.669,87.648,1.32191692]
[1772488280969,0.1,87.72,87.652,0.54988473]
[1772488281194,1.29325031,87.729,87.686,3.69383402]
[1772488281481,1.29325031,87.719,87.687,0.34988473]
[1772488282979,1.29325031,87.719,87.692,0.36369374]
[1772488283368,12.69261102,87.725,87.692,0.36369374]
[1772488284563,1.29325031,87.724,87.693,11.40341874]
[1772488284876,1.29325031,87.719,87.68,4.00010531]
[1772488285179,1.29325031,87.709,87.671,3.69383402]
[1772488285367,1.29325031,87.699,87.665,30.0]
[1772488285566,1.29325031,87.699,87.664,11.40719109]
[1772488285567,1.29325031,87.689,87.646,0.38382692]
[1772488285754,1.29325031,87.689,87.65,4.00010531]
[1772488285957,1.29325031,87.689,87.65,4.38393223]
[1772488286164,1.29325031,87.689,87.651,0.38382692]
[1772488286568,1.29325031,87.697,87.67,4.37134408]
[1772488286769,1.29325031,87.697,87.67,0.37123877]
[1772488286976,1.29325031,87.697,87.671,0.37123877]
[1772488287187,11.40217574,87.703,87.671,0.37123877]
[1772488287582,1.29325031,87.702,87.671,0.37123877]
[1772488288582,1.29325031,87.7,87.671,0.37123877]
[1772488288880,1.29325031,87.7,87.67,15.40648244]
[1772488289783,1.29325031,87.7,87.664,0.34649457]
[1772488289999,1.29325031,87.699,87.66,15.40777397]
[1772488290863,1.29325031,87.697,87.66,4.00010531]
[1772488291466,1.29325031,87.697,87.66,15.40781235]
[1772488292686,1.29325031,87.697,87.65,4.00010531]
[1772488293120,1.29325031,87.695,87.65,4.00010531]
[1772488293469,1.29325031,87.689,87.65,4.00010531]
[1772488293669,1.29325031,87.689,87.649,11.40914328]
[1772488293983,1.29325031,87.689,87.65,4.00010531]
[1772488294184,1.29325031,87.689,87.641,11.41018473]
[1772488294794,1.29325031,87.679,87.641,11.41018473]
[1772488296280,1.29325031,87.677,87.65,4.00010531]
[1772488296469,1.29325031,87.7,87.67,4.00010531]
[1772488296674,1.29325031,87.7,87.641,96.9865702]
[1772488296675,1.29325031,87.7,87.68,4.00010531]
[1772488297390,12.69588888,87.699,87.67,4.00010531]
[1772488298667,12.69588888,87.699,87.671,11.40628029]
[1772488299487,1.29325031,87.698,87.66,4.00010531]
[1772488300174,1.29325031,87.698,87.661,11.40758147]
[1772488300798,1.29325031,87.696,87.661,11.40758147]
[1772488301697,1.29325031,87.689,87.646,11.4095338]
[1772488301996,1.29325031,87.689,87.626,1.14121379]
[1772488301997,1.29325031,87.659,87.62,4.00010531]
[1772488302180,1.29325031,87.659,87.627,11.41200771]
[1772488302894,1.29325031,87.657,87.627,11.41200771]
[1772488304288,1.29325031,87.655,87.627,11.41200771]
[1772488306297,1.29325031,87.653,87.627,11.41200771]
[1772488306874,1.29325031,87.653,87.62,4.00010531]
[1772488308301,1.22876435,87.651,87.625,36.45842949]
[1772488308600,1.22876435,87.651,87.625,25.04628845]
[1772488308897,1.22876435,87.649,87.625,25.04628845]
[1772488310201,1.22876435,87.647,87.625,25.04628845]
[1772488312583,1.22876435,87.645,87.625,25.04628845]
[1772488314489,1.22876435,87.643,87.625,25.04628845]
[1772488316388,1.22876435,87.668,87.631,0.0539271]
[1772488317007,1.22876435,87.666,87.625,25.04628845]
[1772488318406,1.22876435,87.639,87.602,0.02783235]
[1772488318607,1.22876435,87.659,87.621,0.02783235]
[1772488319310,1.22876435,87.659,87.614,0.02783235]
[1772488319489,1.22876435,87.659,87.61,10.71639347]
[1772488319696,1.22876435,87.649,87.61,10.71639347]
[1772488320206,1.22876435,87.637,87.601,11.4153948]
[1772488320590,1.22876435,87.637,87.59,10.71639347]
[1772488320801,39.93701362,87.638,87.58,11.41806358]
[1772488320802,1.22876435,87.619,87.58,11.41806358]
[1772488321307,1.22876435,87.609,87.571,24.67040967]
[1772488322403,1.22876435,87.607,87.571,24.67040967]
[1772488323300,11.41397835,87.612,87.59,10.71639347]
[1772488323503,1.22876435,87.616,87.59,10.71639347]
[1772488324011,12.64233508,87.615,87.59,10.71639347]
[1772488325010,28.53070138,87.625,87.55,10.71639347]
[1772488325011,1.22876435,87.599,87.55,10.71639347]
[1772488325190,28.53070138,87.625,87.54,0.05686054]
[1772488325191,1.22876435,87.579,87.542,11.42308834]
[1772488325585,1.22876435,87.579,87.541,30.0]
[1772488325790,1.22876435,87.579,87.54,0.05686054]
[1772488325791,1.22876435,87.559,87.53,0.2]
[1772488325990,1.22876435,87.549,87.53,0.2]
[1772488326207,1.22876435,87.549,87.52,0.2]
[1772488326412,8.51860971,87.592,87.51,10.91639347]
[1772488326413,1.22876435,87.539,87.51,0.2]
[1772488326890,1.22876435,87.537,87.51,0.2]
[1772488327092,1.22876435,87.537,87.51,10.91639347]
[1772488327313,1.22876435,87.537,87.51,0.2]
[1772488328595,39.9826361,87.538,87.51,0.2]
[1772488328596,1.22876435,87.547,87.511,11.57423627]
[1772488329394,1.22876435,87.545,87.512,0.13952947]
[1772488330694,1.22876435,87.545,87.52,10.74079558]
[1772488331010,1.22876435,87.555,87.521,0.13204451]
[1772488331596,1.22876435,87.553,87.521,11.55787373]
[1772488332296,1.22876435,87.549,87.513,3.69383402]
[1772488332506,1.22876435,87.549,87.497,0.12409769]
[1772488332507,1.22876435,87.539,87.49,10.94079558]
[1772488332818,1.22876435,87.529,87.495,11.42921336]
[1772488334022,1.22876435,87.527,87.499,11.42865725]
[1772488334515,1.22876435,87.535,87.51,10.84159629]
[1772488335918,12.65093936,87.549,87.52,10.74079558]
[1772488336117,1.22876435,87.548,87.512,0.09321276]
[1772488337300,1.22876435,87.548,87.521,0.07096783]
[1772488337606,1.22876435,87.548,87.52,10.74079558]
[1772488337799,1.10246945,87.539,87.5,10.94079558]
[1772488338000,1.10246945,87.539,87.502,11.42828819]
[1772488338422,1.10246945,87.529,87.502,11.42828819]
[1772488338810,1.10246945,87.529,87.5,0.2]
[1772488339211,1.10246945,87.519,87.5,0.2]
[1772488339414,1.10246945,87.519,87.49,0.2]
[1772488339818,1.04493284,87.517,87.491,11.42974705]